fUSD/lending_fUSD_20250127
["ID","MTS","AMOUNT","RATE_DAILY","PERIOD"]
[350511769,1737936639778,-500.0,0.00011642,2]
[350511771,1737936639787,-500.0,0.00011642,2]
[350511773,1737936639796,-500.0,0.00011642,2]
[350511775,1737936639805,-500.0,0.00011642,2]
[350511777,1737936639814,-500.0,0.00011642,2]
[350511779,1737936639824,-502.37758404,0.00011642,2]
[350511781,1737936639833,-500.0,0.00011642,2]
[350511783,1737936639842,-500.0,0.00011642,2]
[350511785,1737936639851,-500.0,0.00011642,2]
[350511787,1737936639860,-500.0,0.00011642,2]
[350511789,1737936639870,-500.0,0.00011642,2]
[350511791,1737936639879,-500.0,0.00011642,2]
[350511793,1737936639887,-500.0,0.00011642,2]
[350511795,1737936639898,-500.0,0.00011642,2]
[350511797,1737936639907,-500.0,0.00011642,2]
[350511799,1737936639916,-506.39178752,0.00011642,2]
[350511801,1737936639925,-500.0,0.00011642,2]
[350511803,1737936639934,-500.0,0.00011642,2]
[350511805,1737936639944,-500.0,0.00011642,2]
[350511807,1737936639953,-500.0,0.00011642,2]
[350511809,1737936639962,-500.0,0.00011642,2]
[350511811,1737936639972,-500.0,0.00011642,2]
[350511813,1737936639981,-500.0,0.00011642,2]
[350511815,1737936639991,-500.0,0.00011642,2]
[350511817,1737936640000,-500.0,0.00011642,2]
[350511818,1737936640009,-500.0,0.00011642,2]
[350511820,1737936640018,-500.0,0.00011642,2]
[350511822,1737936640028,-500.0,0.00011642,2]
[350511824,1737936640038,-500.0,0.00011642,2]
[350511826,1737936640047,-500.0,0.00011642,2]
[350511828,1737936640056,-500.0,0.00011642,2]
[350511830,1737936640072,-215.55,0.00011642,2]
[350511832,1737936640082,-500.0,0.00011642,2]
[350511834,1737936640092,-500.0,0.00011642,2]
[350511836,1737936640101,-500.0,0.00011642,2]
[350511838,1737936640111,-454.6425229,0.00011642,2]
[350511840,1737936640121,-500.0,0.00011642,2]
[350511842,1737936640131,-500.0,0.00011642,2]
[350511844,1737936640142,-500.0,0.00011642,2]
[350511846,1737936640152,-500.0,0.00011642,2]
[350511848,1737936640161,-500.0,0.00011642,2]
[350511850,1737936640171,-500.0,0.00011642,2]
[350511852,1737936640180,-500.0,0.00011642,2]
[350511854,1737936640190,-649.74428317,0.00011642,2]
[350511856,1737936640199,-500.0,0.00011642,2]
[350511858,1737936640209,-500.0,0.00011642,2]
[350511860,1737936640218,-288.95868636,0.00011642,2]
[350511862,1737936640227,-500.0,0.00011642,2]
[350511864,1737936640237,-500.0,0.00011642,2]
[350511866,1737936640246,-500.0,0.00011642,2]
[350511868,1737936640255,-500.0,0.00011642,2]
[350511870,1737936640265,-500.0,0.00011642,2]
[350511872,1737936640274,-500.0,0.00011642,2]
[350511874,1737936640283,-500.0,0.00011642,2]
[350511876,1737936640293,-500.0,0.00011642,2]
[350511878,1737936640302,-287.16851965,0.00011642,2]
[350511880,1737936640311,-500.0,0.00011642,2]
[350511882,1737936640320,-500.0,0.00011642,2]
[350511884,1737936640330,-500.0,0.00011642,2]
[350511886,1737936640339,-500.0,0.00011642,2]
[350511888,1737936640349,-500.0,0.00011642,2]
[350511890,1737936640358,-500.0,0.00011642,2]
[350511892,1737936640367,-500.0,0.00011642,2]
[350511894,1737936640376,-509.15170588,0.00011642,2]
[350511896,1737936640385,-509.56668863,0.00011642,2]
[350511898,1737936640396,-500.0,0.00011642,2]
[350511900,1737936640405,-500.0,0.00011642,2]
[350511902,1737936640414,-500.0,0.00011642,2]
[350511904,1737936640424,-500.0,0.00011642,2]
[350511906,1737936640433,-500.0,0.00011642,2]
[350511908,1737936640443,-516.17505005,0.00011642,2]
[350511910,1737936640453,-500.0,0.00011642,2]
[350511912,1737936640463,-500.0,0.00011642,2]
[350511914,1737936640472,-500.0,0.00011642,2]
[350511916,1737936640482,-500.0,0.00011642,2]
[350511918,1737936640491,-500.0,0.00011642,2]
[350511920,1737936640500,-500.0,0.00011642,2]
[350511922,1737936640510,-500.0,0.00011642,2]
[350511924,1737936640519,-500.0,0.00011642,2]
[350511926,1737936640528,-500.0,0.00011642,2]
[350511928,1737936640538,-500.0,0.00011642,2]
[350511930,1737936640547,-500.0,0.00011642,2]
[350511932,1737936640556,-500.0,0.00011642,2]
[350511934,1737936640565,-327.20602335,0.00011642,2]
[350511936,1737936640574,-500.0,0.00011642,2]
[350511938,1737936640583,-500.0,0.00011642,2]
[350511940,1737936640593,-500.0,0.00011642,2]
[350511942,1737936640602,-500.0,0.00011642,2]
[350511944,1737936640612,-500.0,0.00011642,2]
[350511946,1737936640621,-500.0,0.00011642,2]
[350511948,1737936640630,-3216.5731133,0.00011668,2]
[350511950,1737936640639,-1000.0,0.000117,2]
[350511952,1737936640649,-1700.0,0.00011772,2]
[350511954,1737936640659,-700.0,0.00011772,2]
[350511956,1737936640668,-3216.5731133,0.00011784,2]
[350511958,1737936640682,-255.0,0.00011789,2]
[350511960,1737936640692,-2013.4569344,0.00011826,2]
[350511962,1737936640702,-399.96926977,0.00011827,2]
[350511964,1737936640713,-600.92578306,0.00011827,2]
[350511966,1737936640725,-600.92578306,0.00011836,2]
[350511968,1737936640734,-2013.4569344,0.00011838,2]
[350511970,1737936640744,-399.96926977,0.00011841,2]
[350511972,1737936640756,-600.92578306,0.00011841,2]
[350511974,1737936640766,-600.92578306,0.00011848,2]
[350511976,1737936640776,-150.0,0.0001185,2]
[350511978,1737936640785,-306.32732366,0.0001185,2]
[350511980,1737936640794,-2013.4569344,0.00011861,2]
[350511982,1737936640804,-306.32732366,0.00011863,2]
[350511984,1737936640814,-306.32732366,0.00011864,2]
[350511986,1737936640823,-399.96926977,0.0001187,2]
[350511988,1737936640833,-2013.4569344,0.00011878,2]
[350511990,1737936640843,-2013.4569344,0.00011885,2]
[350511992,1737936640853,-399.96926977,0.0001189,2]
[350511994,1737936640863,-306.32732366,0.00011891,2]
[350511996,1737936640873,-306.32732366,0.00011895,2]
[350511998,1737936640883,-171.2166667,0.00011899,2]
[350512000,1737936640893,-171.21666666,0.00011899,2]
[350512002,1737936640904,-171.21666666,0.00011899,2]
[350512004,1737936640913,-171.21666666,0.000119,2]
[350512006,1737936640923,-171.21666666,0.000119,2]
[350512008,1737936640933,-10228.250484,0.000119,2]
[350512010,1737936640942,-1552.528,0.000119,2]
[350512012,1737936640952,-174.179,0.000119,2]
[350512014,1737936640961,-253.5982635,0.000119,2]
[350512016,1737936640971,-171.21666666,0.000119,2]
[350512018,1737936640980,-3216.5731133,0.000119,2]
[350512021,1737936640991,-165.62643005,0.000119,2]
[350512024,1737936641001,-205.97852388,0.000119,2]
[350512026,1737936641014,-600.92578306,0.00011903,2]
[350512028,1737936641024,-399.96926977,0.00011914,2]
[350512030,1737936641033,-306.61395939,0.00011973,2]
[350512032,1737936641043,-204.71845018,0.00011973,2]
[350512034,1737936641053,-500.0,0.00011973,2]
[350512036,1737936641063,-254.21,0.00011999,2]
[350512038,1737936641072,-2000.0,0.00011999,2]
[350512040,1737936641082,-500.0,0.00011999,2]
[350512042,1737936641092,-500.0,0.00011999,2]
[350512044,1737936641101,-500.0,0.00011999,2]
[350512046,1737936641110,-500.0,0.00011999,2]
[350512048,1737936641119,-500.0,0.00011999,2]
[350512050,1737936641129,-361.74147625,0.00011999,2]
[350512052,1737936641138,-500.0,0.00011999,2]
[350512053,1737936641149,-500.0,0.00011999,2]
[350512055,1737936641158,-500.0,0.00011999,2]
[350512058,1737936641168,-500.0,0.00011999,2]
[350512060,1737936641177,-500.0,0.00011999,2]
[350512062,1737936641186,-500.0,0.00011999,2]
[350512063,1737936641195,-500.0,0.00011999,2]
[350512065,1737936641205,-500.0,0.00011999,2]
[350512067,1737936641214,-500.0,0.00011999,2]
[350512069,1737936641228,-500.0,0.00011999,2]
[350512071,1737936641238,-487.98106631,0.00011999,2]
[350512073,1737936641247,-182.83192399,0.00011999,2]
[350512075,1737936641257,-287.665,0.00011999,2]
[350512078,1737936641267,-500.0,0.00011999,2]
[350512079,1737936641277,-500.0,0.00011999,2]
[350512081,1737936641286,-500.0,0.00011999,2]
[350512084,1737936641296,-500.0,0.00011999,2]
[350512085,1737936641305,-436.2762267,0.00011999,2]
[350512087,1737936641315,-500.0,0.00011999,2]
[350512089,1737936641325,-500.0,0.00011999,2]
[350512091,1737936641334,-500.0,0.00011999,2]
[350512093,1737936641343,-500.0,0.00011999,2]
[350512095,1737936641352,-500.0,0.00011999,2]
[350512097,1737936641361,-500.0,0.00011999,2]
[350512099,1737936641371,-500.0,0.00011999,2]
[350512101,1737936641380,-500.0,0.00011999,2]
[350512103,1737936641389,-500.0,0.00011999,2]
[350512105,1737936641400,-500.0,0.00011999,2]
[350512107,1737936641409,-500.0,0.00011999,2]
[350512109,1737936641418,-500.0,0.00011999,2]
[350512111,1737936641427,-377.67464211,0.00011999,2]
[350512113,1737936641437,-474.23896909,0.00011999,2]
[350512115,1737936641445,-500.0,0.00011999,2]
[350512117,1737936641455,-500.0,0.00011999,2]
[350512119,1737936641469,-500.0,0.00011999,2]
[350512121,1737936641478,-162.87776023,0.00011999,2]
[350512123,1737936641488,-500.0,0.00011999,2]
[350512140,1737936641636,-500.0,0.00011999,2]
[350512142,1737936641651,-500.0,0.00011999,2]
[350512144,1737936641661,-500.0,0.00011999,2]
[350512146,1737936641671,-500.0,0.00011999,2]
[350512148,1737936641680,-500.0,0.00011999,2]
[350512150,1737936641696,-325.525133,0.00011999,2]
[350512152,1737936641705,-500.0,0.00011999,2]
[350512154,1737936641714,-581.00332079,0.00011999,2]
[350512156,1737936641724,-319.033198,0.00011999,2]
[350512158,1737936641734,-319.033198,0.00011999,2]
[350512160,1737936641744,-500.0,0.00011999,2]
[350512162,1737936641754,-500.0,0.00011999,2]
[350512164,1737936641765,-500.0,0.00011999,2]
[350512166,1737936641774,-500.0,0.00011999,2]
[350512168,1737936641784,-500.0,0.00011999,2]
[350512170,1737936641793,-500.0,0.00011999,2]
[350512172,1737936641802,-500.0,0.00011999,2]
[350512174,1737936641812,-399.26,0.00011999,2]
[350512176,1737936641821,-503.75334921,0.00011999,2]
[350512178,1737936641830,-500.0,0.00011999,2]
[350512180,1737936641839,-500.0,0.00011999,2]
[350512182,1737936641847,-500.0,0.00011999,2]
[350512183,1737936641856,-500.0,0.00011999,2]
[350512184,1737936641865,-548.03,0.00011999,2]
[350512185,1737936641874,-500.0,0.00011999,2]
[350512186,1737936641883,-500.0,0.00011999,2]
[350512187,1737936641892,-500.0,0.00011999,2]
[350512188,1737936641901,-610.13217483,0.00011999,2]
[350512189,1737936641910,-500.0,0.00011999,2]
[350512190,1737936641919,-180.98948705,0.00011999,2]
[350512191,1737936641928,-500.0,0.00011999,2]
[350512192,1737936641936,-500.0,0.00011999,2]
[350512193,1737936641946,-190.76326394,0.00011999,2]
[350512194,1737936641955,-500.0,0.00011999,2]
[350512195,1737936641965,-500.0,0.00011999,2]
[350512196,1737936641974,-500.0,0.00011999,2]
[350512198,1737936641983,-500.0,0.00011999,2]
[350512200,1737936641993,-500.0,0.00011999,2]
[350512202,1737936642002,-500.0,0.00011999,2]
[350512204,1737936642012,-500.0,0.00011999,2]
[350512207,1737936642023,-166.75357242,0.00011999,2]
[350512208,1737936642032,-500.0,0.00011999,2]
[350512210,1737936642042,-500.0,0.00011999,2]
[350512212,1737936642051,-415.18939162,0.00011999,2]
[350512214,1737936642060,-489.93853176,0.00011999,2]
[350512216,1737936642070,-557.51622587,0.00011999,2]
[350512218,1737936642079,-500.0,0.00011999,2]
[350512220,1737936642090,-500.0,0.00011999,2]
[350512222,1737936642099,-500.0,0.00011999,2]
[350512224,1737936642109,-500.0,0.00011999,2]
[350512226,1737936642118,-264.05,0.00011999,2]
[350512228,1737936642128,-500.0,0.00011999,2]
[350512229,1737936642137,-500.0,0.00011999,2]
[350512230,1737936642148,-326.33,0.00011999,2]
[350512231,1737936642158,-500.0,0.00011999,2]
[350512233,1737936642169,-500.0,0.00011999,2]
[350512235,1737936642179,-500.0,0.00011999,2]
[350512236,1737936642188,-500.0,0.00011999,2]
[350512238,1737936642198,-500.0,0.00011999,2]
[350512241,1737936642208,-500.0,0.00011999,2]
[350512243,1737936642218,-500.0,0.00011999,2]
[350512245,1737936642227,-258.11,0.00011999,2]
[350512246,1737936642237,-517.60421557,0.00011999,2]
[350512247,1737936642246,-478.73176185,0.00011999,2]
[350512248,1737936642256,-500.0,0.00011999,2]
[350512251,1737936642267,-500.0,0.00011999,2]
[350512252,1737936642277,-500.0,0.00011999,2]
[350512254,1737936642287,-500.0,0.00011999,2]
[350512255,1737936642297,-500.0,0.00011999,2]
[350512257,1737936642306,-500.0,0.00011999,2]
[350512259,1737936642316,-500.0,0.00011999,2]
[350512261,1737936642325,-500.0,0.00011999,2]
[350512262,1737936642334,-502.24,0.00011999,2]
[350512264,1737936642344,-500.0,0.00011999,2]
[350512265,1737936642355,-330.6,0.00011999,2]
[350512266,1737936642365,-500.0,0.00011999,2]
[350512268,1737936642375,-452.810121,0.00011999,2]
[350512271,1737936642385,-408.33,0.00011999,2]
[350512274,1737936642395,-500.0,0.00011999,2]
[350512277,1737936642405,-455.81329099,0.00011999,2]
[350512278,1737936642414,-500.0,0.00011999,2]
[350512279,1737936642424,-500.0,0.00011999,2]
[350512281,1737936642433,-500.0,0.00011999,2]
[350512283,1737936642443,-500.0,0.00011999,2]
[350512286,1737936642453,-500.0,0.00011999,2]
[350512290,1737936642462,-500.0,0.00011999,2]
[350512293,1737936642471,-407.91,0.00011999,2]
[350512298,1737936642481,-174.7714865,0.00011999,2]
[350512302,1737936642490,-500.0,0.00011999,2]
[350512306,1737936642499,-248.87584436,0.00011999,2]
[350512308,1737936642509,-500.0,0.00011999,2]
[350512309,1737936642518,-500.0,0.00011999,2]
[350512310,1737936642528,-500.0,0.00011999,2]
[350512311,1737936642537,-500.0,0.00011999,2]
[350512312,1737936642546,-500.0,0.00011999,2]
[350512313,1737936642555,-500.0,0.00011999,2]
[350512314,1737936642564,-500.0,0.00011999,2]
[350512316,1737936642573,-500.0,0.00011999,2]
[350512317,1737936642583,-500.0,0.00011999,2]
[350512318,1737936642592,-500.0,0.00011999,2]
[350512319,1737936642601,-500.0,0.00011999,2]
[350512320,1737936642611,-500.0,0.00011999,2]
[350512321,1737936642620,-552.15,0.00011999,2]
[350512322,1737936642629,-500.0,0.00011999,2]
[350512323,1737936642638,-500.0,0.00011999,2]
[350512324,1737936642648,-500.0,0.00011999,2]
[350512325,1737936642657,-606.36,0.00011999,2]
[350512326,1737936642667,-500.0,0.00011999,2]
[350512327,1737936642679,-500.0,0.00011999,2]
[350512328,1737936642689,-500.0,0.00011999,2]
[350512329,1737936642698,-500.0,0.00011999,2]
[350512330,1737936642707,-500.0,0.00011999,2]
[350512331,1737936642716,-500.0,0.00011999,2]
[350512332,1737936642727,-500.0,0.00011999,2]
[350512333,1737936642736,-500.0,0.00011999,2]
[350512334,1737936642746,-500.0,0.00011999,2]
[350512335,1737936642756,-500.0,0.00011999,2]
[350512336,1737936642765,-500.0,0.00011999,2]
[350512337,1737936642775,-500.0,0.00011999,2]
[350512338,1737936642784,-500.0,0.00011999,2]
[350512339,1737936642793,-500.0,0.00011999,2]
[350512340,1737936642802,-500.0,0.00011999,2]
[350512341,1737936642812,-500.0,0.00011999,2]
[350512342,1737936642821,-500.0,0.00011999,2]
[350512343,1737936642831,-443.93,0.00011999,2]
[350512344,1737936642840,-631.86,0.00011999,2]
[350512345,1737936642850,-458.9858215,0.00011999,2]
[350512347,1737936642859,-247.48,0.00011999,2]
[350512349,1737936642868,-500.0,0.00011999,2]
[350512351,1737936642877,-500.0,0.00011999,2]
[350512352,1737936642887,-500.0,0.00011999,2]
[350512353,1737936642896,-500.0,0.00011999,2]
[350512354,1737936642906,-500.0,0.00011999,2]
[350512356,1737936642915,-500.0,0.00011999,2]
[350512358,1737936642924,-500.0,0.00011999,2]
[350512359,1737936642933,-169.58,0.00011999,2]
[350512360,1737936642942,-500.0,0.00011999,2]
[350512361,1737936642951,-500.0,0.00011999,2]
[350512362,1737936642961,-446.92,0.00011999,2]
[350512364,1737936642974,-500.0,0.00011999,2]
[350512365,1737936642984,-500.0,0.00011999,2]
[350512366,1737936642995,-608.12493536,0.00011999,2]
[350512367,1737936643004,-500.0,0.00011999,2]
[350512368,1737936643014,-500.0,0.00011999,2]
[350512371,1737936643024,-500.0,0.00011999,2]
[350512373,1737936643034,-500.0,0.00011999,2]
[350512374,1737936643044,-301.84783557,0.00011999,2]
[350512377,1737936643054,-500.0,0.00011999,2]
[350512378,1737936643066,-500.0,0.00011999,2]
[350512379,1737936643076,-188.16,0.00011999,2]
[350512380,1737936643087,-500.0,0.00011999,2]
[350512381,1737936643097,-500.0,0.00011999,2]
[350512382,1737936643107,-500.0,0.00011999,2]
[350512383,1737936643119,-500.0,0.00011999,2]
[350512384,1737936643129,-500.0,0.00011999,2]
[350512385,1737936643140,-500.0,0.00011999,2]
[350512386,1737936643155,-500.0,0.00011999,2]
[350512387,1737936643166,-500.0,0.00011999,2]
[350512388,1737936643177,-535.1,0.00011999,2]
[350512389,1737936643187,-500.0,0.00011999,2]
[350512390,1737936643198,-349.53123395,0.00011999,2]
[350512391,1737936643208,-508.77911643,0.00011999,2]
[350512392,1737936643217,-500.0,0.00011999,2]
[350512393,1737936643227,-500.0,0.00011999,2]
[350512394,1737936643238,-500.0,0.00011999,2]
[350512395,1737936643248,-639.64,0.00011999,2]
[350512396,1737936643258,-500.0,0.00011999,2]
[350512397,1737936643268,-404.3968059,0.00011999,2]
[350512398,1737936643280,-500.0,0.00011999,2]
[350512399,1737936643289,-500.0,0.00011999,2]
[350512400,1737936643299,-500.0,0.00011999,2]
[350512401,1737936643308,-500.0,0.00011999,2]
[350512402,1737936643318,-500.0,0.00011999,2]
[350512403,1737936643328,-500.0,0.00011999,2]
[350512404,1737936643338,-382.23,0.00011999,2]
[350512405,1737936643348,-500.0,0.00011999,2]
[350512406,1737936643358,-500.0,0.00011999,2]
[350512407,1737936643368,-500.0,0.00011999,2]
[350512408,1737936643377,-500.0,0.00011999,2]
[350512409,1737936643387,-500.0,0.00011999,2]
[350512410,1737936643399,-500.0,0.00011999,2]
[350512411,1737936643409,-500.0,0.00011999,2]
[350512412,1737936643420,-500.0,0.00011999,2]
[350512413,1737936643430,-500.0,0.00011999,2]
[350512414,1737936643440,-500.0,0.00011999,2]
[350512415,1737936643450,-500.0,0.00011999,2]
[350512416,1737936643460,-281.40696213,0.00011999,2]
[350512417,1737936643470,-500.0,0.00011999,2]
[350512418,1737936643484,-500.0,0.00011999,2]
[350512420,1737936643494,-500.0,0.00011999,2]
[350512421,1737936643504,-500.0,0.00011999,2]
[350512422,1737936643514,-500.0,0.00011999,2]
[350512423,1737936643524,-418.45789232,0.00011999,2]
[350512424,1737936643533,-500.0,0.00011999,2]
[350512425,1737936643542,-277.89244696,0.00011999,2]
[350512426,1737936643552,-1331.0,0.00012,2]
[350512427,1737936643562,-155875.86989404,0.00012,2]
[350512428,1737936643786,-50671.8423197,0.00012,2]
[350512429,1737936643799,-3288.00000001,0.00012,2]
[350512430,1737936643812,-28264.92314096,0.00012,2]
[350512431,1737936643822,-11911.19857363,0.00012,2]
[350512432,1737936643832,-5483.26956505,0.00012,2]
[350512433,1737936643844,-8293.83287908,0.00012,2]
[350512434,1737936643856,-2121.3072734,0.00012,2]
[350512435,1737936643869,-381.83049186,0.00012,2]
[350512436,1737936643882,-2099.97901569,0.00012,2]
[350512437,1737936643893,-8301.08533142,0.00012,2]
[350512438,1737936643923,-1996.96123222,0.00012,2]
[350512439,1737936643936,-617381.93877909,0.00012,2]
[350512440,1737936643992,-22380.04881549,0.00012,2]
[350512441,1737936644003,-371.19046985,0.00012,2]
[350512442,1737936644095,-500.0,0.00010995,2]
[350512443,1737936644107,-500.0,0.00010996,2]
[350512444,1737936644118,-500.0,0.00011999,2]
[350512445,1737936644129,-16625.67397603,0.00012,2]
[350512446,1737936644245,-500.0,0.00010996,2]
[350512447,1737936644255,-500.0,0.00011098,2]
[350512448,1737936644264,-500.0,0.00011999,2]
[350512449,1737936644274,-369.8253728,0.00011999,2]
[350512450,1737936644286,-130.1746272,0.00011999,2]
[350512451,1737936644295,-383.4384728,0.00011999,2]
[350512452,1737936644319,-116.5615272,0.00011999,2]
[350512453,1737936644329,-397.87143306,0.00011999,2]
[350512454,1737936644353,-102.12856694,0.00011999,2]
[350512455,1737936644363,-500.0,0.00011999,2]
[350512456,1737936644372,-2565897.87143581,0.00012,2]
[350512457,1737936644384,-20423.99961075,0.00012,2]
[350512458,1737936644397,-12693.38420374,0.00012,2]
[350512459,1737936644422,-3223.38700002,0.00012,2]
[350512460,1737936644434,-308.28352284,0.00012,2]
[350512461,1737936644518,-500.0,0.00011098,2]
[350512462,1737936644528,-96.66812661,0.00011999,2]
[350512463,1737936644564,-403.33187339,0.00011999,2]
[350512464,1737936644573,-500.0,0.00011999,2]
[350512465,1737936644582,-500.0,0.00011999,2]
[350512466,1737936644591,-500.0,0.00011999,2]
[350512467,1737936644600,-500.0,0.00011999,2]
[350512468,1737936644609,-35866.94183459,0.00012,2]
[350512469,1737936644622,-51209.3024896,0.00012,2]
[350512470,1737936644694,-504.74154722,0.00010996,2]
[350512471,1737936644703,-268.76764227,0.00011999,2]
[350512472,1737936644713,-843.58761342,0.00012,2]
[350512473,1737936644730,-22743.2633802,0.00012,2]
[350512474,1737936644746,-10578.07610997,0.00012,2]
[350512498,1737936645558,-500.0,0.00010995,2]
[350512499,1737936645569,-499.922497,0.00010995,2]
[350512500,1737936645579,-500.0,0.00010996,2]
[350512501,1737936645588,-500.0,0.00011098,2]
[350512502,1737936645598,-500.36369453,0.00011098,2]
[350512503,1737936645608,-500.0,0.00011999,2]
[350512504,1737936645617,-500.0,0.00011999,2]
[350512505,1737936645627,-500.0,0.00011999,2]
[350512506,1737936645636,-500.0,0.00011999,2]
[350512507,1737936645646,-500.0,0.00011999,2]
[350512508,1737936645662,-500.0,0.00011999,2]
[350512509,1737936645671,-499.922497,0.00011999,2]
[350512510,1737936645681,-499.922497,0.00011999,2]
[350512511,1737936645690,-1089.0,0.00012,2]
[350512512,1737936645702,-22545.20350226,0.00012,2]
[350512513,1737936645714,-810.65568644,0.00012,2]
[350512514,1737936645738,-500.0,0.00011999,2]
[350512515,1737936645747,-2863.42700042,0.00012,2]
[350512516,1737936645759,-271.999992,0.00012,2]
[350512517,1737936645792,-500.0,0.00011999,2]
[350512518,1737936645801,-500.0,0.00011999,2]
[350512519,1737936645810,-5018.79319946,0.00012,2]
[350512520,1737936645821,-16027.20250579,0.00012,2]
[350512521,1737936645832,-410.703556,0.00012,2]
[350512522,1737936645859,-241.4071876,0.00011999,2]
[350512523,1737936645868,-305.77881526,0.00011999,2]
[350512524,1737936645878,-132.1526263,0.00012,2]
[350512526,1737936645888,-644.64400001,0.00012,2]
[350512528,1737936645902,-5494.38981272,0.00012,2]
[350512532,1737936706754,616.01970098,0.00011972,10]
[350512534,1737936811143,554.61,8.625e-05,2]
[350512535,1737936819900,200.42,8.355e-05,2]
[350512536,1737936960575,1000.0,0.00013698,30]
[350512537,1737936960832,1000.0,0.00013698,30]
[350512538,1737936961110,1000.0,0.00013698,30]
[350512542,1737937372456,907.61,9.285e-05,2]
[350512543,1737937404804,411.65,9.298e-05,2]
[350512544,1737937406798,1973.62,9.314e-05,2]
[350512545,1737937418826,702.85,9.28e-05,2]
[350512555,1737937608261,174.12,9.262e-05,2]
[350512556,1737937628896,1000.0,9.277e-05,2]
[350512565,1737937663870,691.42,9.373e-05,2]
[350512566,1737937663892,10000.0,9.373e-05,2]
[350512567,1737937663915,10000.0,9.373e-05,2]
[350512568,1737937663940,3208.58,9.373e-05,2]
[350512569,1737937677150,3889.19,9.264e-05,2]
[350512576,1737937778843,2902.23,9.187e-05,2]
[350512577,1737937778863,669.63,9.187e-05,2]
[350512578,1737937781378,526.87,8.219e-05,2]
[350512585,1737937831839,-150.85,9.611e-05,2]
[350512586,1737937831851,-150.85,9.615e-05,2]
[350512587,1737937831860,-150.85,9.62e-05,2]
[350512588,1737937831870,-150.85,9.624e-05,2]
[350512589,1737937831879,-3883.75959996,9.628e-05,2]
[350512590,1737937831889,-242.15097747,9.628e-05,2]
[350512591,1737937831898,-805.75002954,9.628e-05,2]
[350512592,1737937831907,-150.85,9.628e-05,2]
[350512593,1737937831917,-150.85,9.633e-05,2]
[350512594,1737937831927,-150.85,9.637e-05,2]
[350512595,1737937831937,-150.85,9.641e-05,2]
[350512596,1737937831946,-150.85,9.646e-05,2]
[350512597,1737937831955,-150.85,9.65e-05,2]
[350512598,1737937831964,-150.85,9.654e-05,2]
[350512599,1737937831974,-150.85,9.659e-05,2]
[350512600,1737937831983,-250.0,9.664e-05,2]
[350512601,1737937831993,-250.0,9.686e-05,2]
[350512602,1737937832003,-1500.0,9.71e-05,2]
[350512603,1737937832012,-300.0,9.721e-05,2]
[350512604,1737937832026,-2000.0,9.723e-05,2]
[350512605,1737937832035,-4792.32,9.761e-05,2]
[350512606,1737937832044,-694.2,9.849e-05,2]
[350512607,1737937832055,-585.62726824,9.929e-05,2]
[350512608,1737937832065,-242.15097745,9.953e-05,2]
[350512609,1737937832074,-8692.87672715,0.0001,2]
[350512610,1737937835931,-15721.05593653,0.0001,2]
[350512611,1737937835941,-1532.4,0.00010029,2]
[350512612,1737937835951,-150.0,0.00010093,2]
[350512613,1737937835961,-250.0,0.00010093,2]